[Event "Groningen Festival 2018"]
[Site "Groningen"]
[Date "2018.12.27"]
[Round "6"]
[White "Cerveny, Martin"]
[Black "Wedda, Dries"]
[Result "1-0"]
[ECO "A50"]
[WhiteElo "2347"]
[BlackElo "2208"]
[Annotator "NA"]
[PlyCount "125"]
[EventDate "2018.12.22"]
[EventType "swiss"]
[EventCountry "NED"]
[SourceTitle "playchess.com"]
[Source "ChessBase"]
[SourceQuality "1"]
[TimeControl "40/5400+30:1800+30"]

1. d4 {[%emt 0:00:00]} Nf6 {[%emt 0:00:00]} 2. Nf3 {[%emt 0:00:00]} b6 {[%emt 0:00:00]} 3. g3 {[%emt 0:00:00]} Bb7 {[%emt 0:00:05]} 4. Bg2 {[%emt 0:00:00]} g6 {[%emt 0:00:22]} 5. O-O {[%emt 0:00:05]} Bg7 {[%emt 0:00:04]} 6. c4 {[%emt 0:00:08]} O-O {[%emt 0:00:05]} 7. Nc3 {[%emt 0:03:39]} Ne4 {[%emt 0:00:21]} 8. Bd2 {[%emt 0:00:20]} d6 {[%emt 0:03:35]} 9. Nxe4 {[%emt 0:01:36]} Bxe4 {[%emt 0:00:06]} 10. Bc3 {[%emt 0:00:06]} Nd7 {[%emt 0:01:39]} 11. Qd2 {[%emt 0:01:02]} e6 {[%emt 0:15:07]} 12. Rfe1 {[%emt 0:03:34]} Qe7 {[%emt 0:03:17]} 13. Bh3 {[%emt 0:00:15]} f5 {[%emt 0:11:01]} 14. Rad1 {[%emt 0:00:31]} a5 {[%emt 0:11:19]} 15. Qe3 {[%emt 0:11:06]} Rae8 {[%emt 0:05:36]} 16. b3 {[%emt 0:04:45]} Qd8 {[%emt 0:07:30]} 17. Qc1 {[%emt 0:02:18]} Qa8 {[%emt 0:07:36]} 18. Bg2 {[%emt 0:01:25]} Re7 {[%emt 0:02:34]} 19. Nh4 {[%emt 0:00:21]} Bxg2 {[%emt 0:00:49]} 20. Nxg2 {[%emt 0:00:02]} Rfe8 {[%emt 0:02:17]} 21. Qb2 {[%emt 0:09:18]} Nf6 {[%emt 0:03:47]} 22. f3 {[%emt 0:00:27]} Bh6 {[%emt 0:02:29]} 23. a3 {[%emt 0:02:23]} Nd7 {[%emt 0:01:25]} 24. b4 {[%emt 0:00:58]} axb4 {[%emt 0:00:19]} 25. axb4 {[%emt 0:00:02]} e5 {[%emt 0:05:07]} 26. d5 {[%emt 0:03:14]} b5 {[%emt 0:03:27]} 27. c5 {[%emt 0:00:07]} dxc5 {[%emt 0:03:25]} 28. bxc5 {[%emt 0:01:42]} Nxc5 {[%emt 0:02:34]} 29. Qxb5 {[%emt 0:01:03]} Nb7 {[%emt 0:00:17]} 30. Ra1 {[%emt 0:02:04]} Nd6 {[%emt 0:00:01]} 31. Qc5 {[%emt 0:00:07]} Qd8 {[%emt 0:01:02]} 32. Ra7 {[%emt 0:01:09]} Rd7 {[%emt 0:01:05]} 33. Ba5 {[%emt 0:00:25]} Nc8 {[%emt 0:02:59]} 34. Rxc7 {[%emt 0:00:09]} Bf8 {[%emt 0:01:16]} 35. Qc6 {[%emt 0:01:49]} Rxc7 {[%emt 0:00:41]} 36. Bxc7 {[%emt 0:00:03]} Qe7 {[%emt 0:00:48]} 37. d6 {[%emt 0:00:16]} Nxd6 {[%emt 0:02:28]} 38. Bxd6 {[%emt 0:00:06]} Qe6 {[%emt 0:00:00]} 39. e4 {[%emt 0:03:15]} Rc8 {[%emt 0:02:12]} 40. exf5 {[%emt 0:01:27]} Rxc6 {[%emt 0:00:34]} 41. fxe6 {[%emt 0:30:06]} Bxd6 {[%emt 0:30:36]} 42. f4 {[%emt 0:05:03]} Bc5+ {[%emt 0:00:00]} 43. Kf1 {[%emt 0:00:00]} Rxe6 {[%emt 0:00:00]} 44. Nh4 {[%emt 0:00:00]} Bd6 {[%emt 0:00:00]} 45. Nf3 {[%emt 0:00:00]} Rf6 {[%emt 0:00:00]} 46. Nxe5 {[%emt 0:00:00]} g5 {[%emt 0:00:00]} 47. Ng4 {[%emt 0:00:00]} Rf8 {[%emt 0:00:00]} 48. Re6 {[%emt 0:00:00]} gxf4 {[%emt 0:00:00]} 49. Nh6+ {[%emt 0:00:00]} Kg7 {[%emt 0:00:00]} 50. g4 {[%emt 0:00:00]} Bc5 {[%emt 0:00:00]} 51. Rc6 {[%emt 0:00:00]} Be3 {[%emt 0:00:00]} 52. h4 {[%emt 0:00:00]} Rb8 {[%emt 0:00:00]} 53. Ke2 {[%emt 0:00:00]} Rb3 {[%emt 0:01:35]} 54. Nf5+ {[%emt 0:00:00]} Kg8 {[%emt 0:00:11]} 55. h5 {[%emt 0:00:00]} Bg1 {[%emt 0:00:51]} 56. Rf6 {[%emt 0:00:00]} f3+ {[%emt 0:00:18]} 57. Kd2 {[%emt 0:00:00]} f2 {[%emt 0:01:02]} 58. Ne7+ {[%emt 0:00:00]} Kg7 {[%emt 0:00:20]} 59. g5 {[%emt 0:00:00]} f1=N+ {[%emt 0:02:46]} 60. Rxf1 {[%emt 0:00:00]} h6 {[%emt 0:01:57]} 61. g6 {[%emt 0:00:00]} Rb2+ {[%emt 0:00:46]} 62. Kc3 {[%emt 0:00:00]} Rf2 {[%emt 0:00:12]} 63. Rxg1 {[%emt 0:00:00]} 1-0

[Event "Groningen Festival 2018"]
[Site "Groningen"]
[Date "2018.12.27"]
[Round "6"]
[White "Ashwath, R.."]
[Black "Gleizerov, Evgeny"]
[Result "1/2-1/2"]
[ECO "A80"]
[WhiteElo "2314"]
[BlackElo "2504"]
[Annotator "ChessBase"]
[PlyCount "39"]
[EventDate "2018.12.22"]
[EventType "swiss"]
[EventCountry "NED"]
[SourceTitle "playchess.com"]
[Source "ChessBase"]
[SourceQuality "1"]
[TimeControl "40/5400+30:1800+30"]

1. d4 {[%emt 0:00:00]} e6 {[%emt 0:00:00]} 2. Nf3 {[%emt 0:00:13]} f5 {[%emt 0:00:00]} 3. h3 {[%emt 0:00:12]} Nf6 {[%emt 0:00:49]} 4. g4 {[%emt 0:00:51]} b6 {[%emt 0:00:22]} 5. Qd3 {[%emt 0:01:58]} Ba6 {[%emt 0:05:27]} 6. c4 {[%emt 0:01:25]} Bb4+ {[%emt 0:00:29]} 7. Bd2 {[%emt 0:01:08]} Qe7 {[%emt 0:03:32]} 8. a3 {[%emt 0:08:06]} Bxd2+ {[%emt 0:00:14]} 9. Nbxd2 {[%emt 0:00:28]} Nc6 {[%emt 0:13:27]} 10. gxf5 {[%emt 0:10:32]} e5 {[%emt 0:00:08]} 11. dxe5 {[%emt 0:14:53]} Nxe5 {[%emt 0:01:46]} 12. Qc3 {[%emt 0:01:10]} Nxf3+ {[%emt 0:04:28]} 13. Qxf3 {[%emt 0:00:29]} O-O {[%emt 0:00:09]} 14. O-O-O {[%emt 0:03:19]} b5 {[%emt 0:02:48]} 15. cxb5 {[%emt 0:02:41]} Qc5+ {[%emt 0:00:09]} 16. Qc3 {[%emt 0:05:25]} Qxc3+ {[%emt 0:01:32]} 17. bxc3 {[%emt 0:00:02]} Bxb5 {[%emt 0:00:04]} 18. e4 {[%emt 0:00:37]} Bxf1 {[%emt 0:00:29]} 19. Rhxf1 {[%emt 0:00:31]} d5 {[%emt 0:00:05]} 20. f3 {[%emt 0:06:08]} 1/2-1/2

[Event "Groningen Festival 2018"]
[Site "Groningen"]
[Date "2018.12.27"]
[Round "6"]
[White "Pel, Bonno"]
[Black "Kollen, Zyon"]
[Result "0-1"]
[ECO "A00"]
[WhiteElo "2279"]
[BlackElo "2363"]
[Annotator "NA"]
[PlyCount "68"]
[EventDate "2018.12.22"]
[EventType "swiss"]
[EventCountry "NED"]
[SourceTitle "playchess.com"]
[Source "ChessBase"]
[SourceQuality "1"]
[TimeControl "40/5400+30:1800+30"]

1. g3 {[%emt 0:00:00]} Nf6 {[%emt 0:00:00]} 2. Bg2 {[%emt 0:00:00]} d5 {[%emt 0:00:11]} 3. d3 {[%emt 0:00:09]} e5 {[%emt 0:00:36]} 4. Nf3 {[%emt 0:00:28]} Bd6 {[%emt 0:00:28]} 5. O-O {[%emt 0:00:22]} O-O {[%emt 0:00:14]} 6. c4 {[%emt 0:05:37]} d4 {[%emt 0:08:39]} 7. c5 {[%emt 0:03:36]} Bxc5 {[%emt 0:00:22]} 8. Nxe5 {[%emt 0:00:08]} c6 {[%emt 0:02:50]} 9. Qc2 {[%emt 0:13:52]} Qe7 {[%emt 0:04:54]} 10. Nf3 {[%emt 0:06:55]} Na6 {[%emt 0:05:11]} 11. a3 {[%emt 0:02:18]} Bf5 {[%emt 0:06:57]} 12. b4 {[%emt 0:02:03]} Bb6 {[%emt 0:00:19]} 13. Bb2 {[%emt 0:00:12]} Rad8 {[%emt 0:12:38]} 14. Re1 {[%emt 0:01:30]} Nc7 {[%emt 0:00:16]} 15. Nbd2 {[%emt 0:00:49]} Ne6 {[%emt 0:01:44]} 16. Nc4 {[%emt 0:10:06]} Bc7 {[%emt 0:01:01]} 17. Nh4 {[%emt 0:01:18]} Bg6 {[%emt 0:08:42]} 18. e4 {[%emt 0:11:30]} dxe3 {[%emt 0:01:07]} 19. Nxe3 {[%emt 0:04:44]} Qd7 {[%emt 0:10:14]} 20. Bxf6 {[%emt 0:05:24]} gxf6 {[%emt 0:00:09]} 21. Be4 {[%emt 0:03:44]} Nd4 {[%emt 0:00:59]} 22. Qd1 {[%emt 0:01:29]} Rfe8 {[%emt 0:03:57]} 23. Nc2 {[%emt 0:03:08]} f5 {[%emt 0:12:56]} 24. Bg2 {[%emt 0:00:25]} Rxe1+ {[%emt 0:00:22]} 25. Nxe1 {[%emt 0:00:23]} Bb6 {[%emt 0:03:12]} 26. Bh3 {[%emt 0:04:30]} Re8 {[%emt 0:01:58]} 27. Neg2 {[%emt 0:11:19]} Ne2+ {[%emt 0:02:02]} 28. Kh1 {[%emt 0:02:26]} Bxf2 {[%emt 0:02:14]} 29. Qf1 {[%emt 0:00:25]} Bxg3 {[%emt 0:06:00]} 30. Nxf5 {[%emt 0:02:33]} Bxf5 {[%emt 0:01:07]} 31. Bxf5 {[%emt 0:00:34]} Qd6 {[%emt 0:01:19]} 32. Ra2 {[%emt 0:02:29]} Qh6 {[%emt 0:00:41]} 33. h3 {[%emt 0:01:23]} Nd4 {[%emt 0:01:04]} 34. Bg4 {[%emt 0:00:40]} f5 {[%emt 0:00:50]} 0-1

[Event "Groningen Festival 2018"]
[Site "Groningen"]
[Date "2018.12.27"]
[Round "6"]
[White "Schippers, Maurice"]
[Black "Beerdsen, Thomas"]
[Result "1/2-1/2"]
[ECO "C47"]
[WhiteElo "2270"]
[BlackElo "2477"]
[Annotator "ChessBase"]
[PlyCount "26"]
[EventDate "2018.12.22"]
[EventType "swiss"]
[EventCountry "NED"]
[SourceTitle "playchess.com"]
[Source "ChessBase"]
[SourceQuality "1"]
[TimeControl "40/5400+30:1800+30"]

1. e4 {[%emt 0:00:00]} e5 {[%emt 0:00:00]} 2. Nf3 {[%emt 0:00:00]} Nc6 {[%emt 0:00:00]} 3. Nc3 {[%emt 0:00:04]} Nf6 {[%emt 0:01:00]} 4. d4 {[%emt 0:01:49]} exd4 {[%emt 0:00:15]} 5. Nxd4 {[%emt 0:00:05]} Bb4 {[%emt 0:00:33]} 6. Nxc6 {[%emt 0:00:06]} bxc6 {[%emt 0:00:04]} 7. Bd3 {[%emt 0:00:05]} O-O {[%emt 0:00:21]} 8. O-O {[%emt 0:00:14]} Re8 {[%emt 0:00:04]} 9. Qf3 {[%emt 0:08:21]} h6 {[%emt 0:11:59]} 10. Qg3 {[%emt 0:09:06]} Bxc3 {[%emt 0:14:34]} 11. bxc3 {[%emt 0:00:56]} Nxe4 {[%emt 0:01:22]} 12. Bxe4 {[%emt 0:00:27]} Rxe4 {[%emt 0:00:07]} 13. Bxh6 {[%emt 0:01:16]} Qf6 {[%emt 0:01:00]} 1/2-1/2

[Event "Groningen Festival 2018"]
[Site "Groningen"]
[Date "2018.12.27"]
[Round "6"]
[White "Baum, Bernd"]
[Black "Warmerdam, Max"]
[Result "1/2-1/2"]
[ECO "E73"]
[WhiteElo "2252"]
[BlackElo "2433"]
[Annotator "NA"]
[PlyCount "28"]
[EventDate "2018.12.22"]
[EventType "swiss"]
[EventCountry "NED"]
[SourceTitle "playchess.com"]
[Source "ChessBase"]
[SourceQuality "1"]
[TimeControl "40/5400+30:1800+30"]

1. Nf3 {[%emt 0:00:00]} c5 {[%emt 0:00:00]} 2. c4 {[%emt 0:01:15]} g6 {[%emt 0:02:24]} 3. d4 {[%emt 0:03:04]} Bg7 {[%emt 0:04:43]} 4. e4 {[%emt 0:03:27]} d6 {[%emt 0:06:49]} 5. dxc5 {[%emt 0:10:27]} Qa5+ {[%emt 0:08:09]} 6. Bd2 {[%emt 0:01:22]} Qxc5 {[%emt 0:00:09]} 7. Nc3 {[%emt 0:00:49]} Nf6 {[%emt 0:03:05]} 8. Be2 {[%emt 0:00:34]} O-O {[%emt 0:07:47]} 9. O-O {[%emt 0:00:28]} Nc6 {[%emt 0:01:07]} 10. h3 {[%emt 0:03:22]} Qb6 {[%emt 0:01:55]} 11. Rb1 {[%emt 0:01:54]} Bd7 {[%emt 0:01:50]} 12. Bg5 {[%emt 0:00:38]} Qa5 {[%emt 0:09:51]} 13. Qd2 {[%emt 0:00:56]} Rfc8 {[%emt 0:00:32]} 14. Rfd1 {[%emt 0:06:13]} Be6 {[%emt 0:07:01]} 1/2-1/2

[Event "Groningen Festival 2018"]
[Site "Groningen"]
[Date "2018.12.27"]
[Round "6"]
[White "Van Meegen, Ruud"]
[Black "Maris, Ivo"]
[Result "0-1"]
[ECO "A06"]
[WhiteElo "2230"]
[BlackElo "2351"]
[Annotator "NA"]
[PlyCount "72"]
[EventDate "2018.12.22"]
[EventType "swiss"]
[EventCountry "NED"]
[SourceTitle "playchess.com"]
[Source "ChessBase"]
[SourceQuality "1"]
[TimeControl "40/5400+30:1800+30"]

1. Nf3 {[%emt 0:00:00]} d5 {[%emt 0:00:12]} 2. e3 {[%emt 0:00:00]} c5 {[%emt 0:01:24]} 3. b3 {[%emt 0:01:39]} Nf6 {[%emt 0:01:22]} 4. Bb2 {[%emt 0:00:19]} g6 {[%emt 0:01:12]} 5. c4 {[%emt 0:11:05]} dxc4 {[%emt 0:01:51]} 6. Bxc4 {[%emt 0:01:00]} Bg7 {[%emt 0:00:05]} 7. h4 {[%emt 0:05:30]} O-O {[%emt 0:04:51]} 8. h5 {[%emt 0:05:33]} Nxh5 {[%emt 0:01:26]} 9. Bxg7 {[%emt 0:00:09]} Kxg7 {[%emt 0:00:18]} 10. Ne5 {[%emt 0:15:27]} Qd6 {[%emt 0:01:48]} 11. Rxh5 {[%emt 0:09:46]} gxh5 {[%emt 0:00:19]} 12. Qxh5 {[%emt 0:00:12]} Qf6 {[%emt 0:06:10]} 13. Nc3 {[%emt 0:04:49]} Nc6 {[%emt 0:05:11]} 14. Nxc6 {[%emt 0:03:08]} Qxc6 {[%emt 0:00:51]} 15. Qg5+ {[%emt 0:04:57]} Qg6 {[%emt 0:00:06]} 16. Qxe7 {[%emt 0:00:21]} Be6 {[%emt 0:02:17]} 17. Bxe6 {[%emt 0:13:25]} Qxe6 {[%emt 0:01:49]} 18. Qxb7 {[%emt 0:02:21]} Rfd8 {[%emt 0:03:37]} 19. Qe4 {[%emt 0:02:57]} Qd6 {[%emt 0:04:11]} 20. Rd1 {[%emt 0:00:46]} a5 {[%emt 0:00:55]} 21. Ke2 {[%emt 0:06:05]} Rab8 {[%emt 0:00:46]} 22. d3 {[%emt 0:01:08]} Qf6 {[%emt 0:04:48]} 23. Nd5 {[%emt 0:02:07]} Qg5 {[%emt 0:00:16]} 24. Nf4 {[%emt 0:02:07]} Re8 {[%emt 0:02:07]} 25. Qf3 {[%emt 0:00:42]} a4 {[%emt 0:00:35]} 26. Nh5+ {[%emt 0:03:18]} Kh8 {[%emt 0:03:04]} 27. Nf6 {[%emt 0:00:12]} Re6 {[%emt 0:02:38]} 28. Ne4 {[%emt 0:00:06]} Qe7 {[%emt 0:01:57]} 29. Qf5 {[%emt 0:00:56]} axb3 {[%emt 0:01:32]} 30. Ng5 {[%emt 0:01:29]} Rg6 {[%emt 0:01:20]} 31. Nxf7+ {[%emt 0:01:04]} Kg7 {[%emt 0:01:14]} 32. Ne5 {[%emt 0:00:31]} Rg5 {[%emt 0:00:04]} 33. Nc6 {[%emt 0:00:51]} Rxf5 {[%emt 0:00:05]} 34. Nxe7 {[%emt 0:00:04]} Rf7 {[%emt 0:00:10]} 35. Nc6 {[%emt 0:01:27]} Rb6 {[%emt 0:00:04]} 36. Ne5 {[%emt 0:00:34]} bxa2 {[%emt 0:00:04]} 0-1

[Event "Groningen Festival 2018"]
[Site "Groningen"]
[Date "2018.12.27"]
[Round "6"]
[White "Elgersma, Simon"]
[Black "De Boer, Eelke"]
[Result "0-1"]
[ECO "B51"]
[WhiteElo "2200"]
[BlackElo "2327"]
[Annotator "NA"]
[PlyCount "98"]
[EventDate "2018.12.22"]
[EventType "swiss"]
[EventCountry "NED"]
[SourceTitle "playchess.com"]
[Source "ChessBase"]
[SourceQuality "1"]
[TimeControl "40/5400+30:1800+30"]

1. e4 {[%emt 0:00:00]} c5 {[%emt 0:00:00]} 2. Nf3 {[%emt 1:31:00]} d6 {[%emt 0:00:00]} 3. Bb5+ {[%emt 0:00:09]} Nd7 {[%emt 0:00:15]} 4. O-O {[%emt 1:31:51]} a6 {[%emt 0:00:16]} 5. Bd3 {[%emt 0:00:02]} Ngf6 {[%emt 1:31:59]} 6. Re1 {[%emt 0:00:21]} e5 {[%emt 0:10:25]} 7. c3 {[%emt 0:11:33]} b5 {[%emt 0:04:27]} 8. Bc2 {[%emt 0:06:26]} Be7 {[%emt 0:00:32]} 9. d4 {[%emt 1:15:50]} O-O {[%emt 0:00:20]} 10. a4 {[%emt 0:03:05]} Bb7 {[%emt 0:03:57]} 11. axb5 {[%emt 0:11:42]} axb5 {[%emt 1:14:39]} 12. Rxa8 {[%emt 0:00:08]} Qxa8 {[%emt 1:11:01]} 13. d5 {[%emt 0:01:42]} c4 {[%emt 0:04:16]} 14. Nbd2 {[%emt 1:00:32]} Qa5 {[%emt 1:05:56]} 15. Nf1 {[%emt 0:11:52]} b4 {[%emt 1:01:50]} 16. cxb4 {[%emt 0:04:23]} Qxb4 {[%emt 0:00:08]} 17. Ne3 {[%emt 0:04:57]} Rc8 {[%emt 0:57:49]} 18. Qe2 {[%emt 0:09:04]} Ba6 {[%emt 0:12:28]} 19. Bd2 {[%emt 0:07:51]} Qb5 {[%emt 0:02:00]} 20. Nf5 {[%emt 0:01:25]} Bf8 {[%emt 0:00:15]} 21. Bc3 {[%emt 0:00:08]} Nc5 {[%emt 0:02:26]} 22. N3h4 {[%emt 0:20:44]} Nd3 {[%emt 0:40:30]} 23. Rf1 {[%emt 0:18:13]} Qc5 {[%emt 0:19:46]} 24. Qf3 {[%emt 0:00:36]} Kh8 {[%emt 0:15:39]} 25. Ra1 {[%emt 0:02:42]} Bb5 {[%emt 0:04:48]} 26. Nh6 {[%emt 0:01:40]} Be8 {[%emt 0:09:29]} 27. N6f5 {[%emt 0:06:32]} Nxe4 {[%emt 0:08:00]} 28. Bxd3 {[%emt 0:00:22]} Nxc3 {[%emt 0:00:07]} 29. Bc2 {[%emt 0:01:36]} Nxd5 {[%emt 0:00:06]} 30. Nh6 {[%emt 0:04:11]} Nb4 {[%emt 0:02:17]} 31. Nxf7+ {[%emt 0:01:52]} Bxf7 {[%emt 0:03:22]} 32. Bxh7 {[%emt 0:00:52]} Kxh7 {[%emt 0:03:21]} 33. Qxf7 {[%emt 0:00:00]} e4 {[%emt 0:00:32]} 34. Qg6+ {[%emt 0:00:59]} Kh8 {[%emt 0:00:09]} 35. Qe6 {[%emt 0:00:29]} Nd3 {[%emt 0:01:24]} 36. Ng6+ {[%emt 0:00:35]} Kh7 {[%emt 0:00:01]} 37. Qxe4 {[%emt 0:00:24]} Qxf2+ {[%emt 0:01:36]} 38. Kh1 {[%emt 0:00:00]} Kh6 {[%emt 0:00:43]} 39. Qe6 {[%emt 0:00:50]} Qf6 {[%emt 0:00:29]} 40. Qxc8 {[%emt 0:00:47]} Kxg6 {[%emt 0:00:28]} 41. Qxc4 {[%emt 0:31:05]} Qf5 {[%emt 0:31:05]} 42. Qg8 {[%emt 0:28:23]} Nf2+ {[%emt 0:02:28]} 43. Kg1 {[%emt 0:00:03]} Ne4 {[%emt 0:00:28]} 44. h3 {[%emt 0:02:21]} d5 {[%emt 0:01:19]} 45. Ra6+ {[%emt 0:18:18]} Bd6 {[%emt 0:00:23]} 46. Qe8+ {[%emt 0:01:08]} Kh7 {[%emt 0:00:23]} 47. Ra1 {[%emt 0:14:27]} Bc5+ {[%emt 0:02:04]} 48. Kh1 {[%emt 0:13:44]} Ng3+ {[%emt 0:00:33]} 49. Kh2 {[%emt 0:00:03]} Qf4 {[%emt 0:00:11]} 0-1

[Event "Groningen Festival 2018"]
[Site "Groningen"]
[Date "2018.12.28"]
[Round "7"]
[White "Krasenkow, Michal"]
[Black "Grooten, Herman"]
[Result "1-0"]
[ECO "D37"]
[WhiteElo "2630"]
[BlackElo "2374"]
[Annotator "ChessBase"]
[PlyCount "73"]
[EventDate "2018.12.22"]
[EventType "swiss"]
[EventCountry "NED"]
[SourceTitle "playchess.com"]
[Source "ChessBase"]
[SourceQuality "1"]
[TimeControl "40/5400+30:1800+30"]

1. Nf3 {[%emt 0:00:00]} d5 {[%emt 0:00:00]} 2. d4 {[%emt 0:00:00]} Nf6 {[%emt 0:00:00]} 3. c4 {[%emt 0:00:00]} e6 {[%emt 0:00:00]} 4. Nc3 {[%emt 0:00:00]} Be7 {[%emt 0:00:13]} 5. Bf4 {[%emt 0:02:55]} O-O {[%emt 0:00:28]} 6. a3 {[%emt 0:00:06]} a6 {[%emt 0:03:09]} 7. c5 {[%emt 0:02:23]} b6 {[%emt 0:04:49]} 8. b4 {[%emt 0:00:17]} Ne4 {[%emt 0:10:17]} 9. Qc2 {[%emt 0:00:46]} f5 {[%emt 0:06:37]} 10. e3 {[%emt 0:02:17]} bxc5 {[%emt 0:07:17]} 11. bxc5 {[%emt 0:00:20]} g5 {[%emt 0:00:42]} 12. Bg3 {[%emt 0:05:28]} Nd7 {[%emt 0:20:42]} 13. Nxe4 {[%emt 0:05:10]} fxe4 {[%emt 0:01:02]} 14. Nd2 {[%emt 0:01:01]} Bf6 {[%emt 0:05:07]} 15. c6 {[%emt 0:02:31]} Nb6 {[%emt 0:00:52]} 16. f3 {[%emt 0:00:55]} Qe7 {[%emt 0:05:15]} 17. Qc3 {[%emt 0:01:55]} h5 {[%emt 0:02:59]} 18. h3 {[%emt 0:03:38]} h4 {[%emt 0:00:38]} 19. Bh2 {[%emt 0:00:05]} a5 {[%emt 0:05:10]} 20. Bb5 {[%emt 0:03:07]} a4 {[%emt 0:02:20]} 21. O-O {[%emt 0:03:17]} exf3 {[%emt 0:07:57]} 22. Rxf3 {[%emt 0:02:19]} Bg7 {[%emt 0:00:56]} 23. Rxf8+ {[%emt 0:04:40]} Bxf8 {[%emt 0:00:17]} 24. Qd3 {[%emt 0:00:23]} Ra5 {[%emt 0:03:22]} 25. Rf1 {[%emt 0:02:36]} Rxb5 {[%emt 0:03:26]} 26. Qxb5 {[%emt 0:00:22]} Qxa3 {[%emt 0:00:29]} 27. Bxc7 {[%emt 0:13:35]} Qxe3+ {[%emt 0:01:59]} 28. Kh1 {[%emt 0:01:45]} Qxd2 {[%emt 0:02:23]} 29. Qxb6 {[%emt 0:04:53]} e5 {[%emt 0:03:24]} 30. Bxe5 {[%emt 0:04:15]} Qe2 {[%emt 0:02:30]} 31. Rxf8+ {[%emt 0:02:14]} Kxf8 {[%emt 0:00:05]} 32. Qd8+ {[%emt 0:00:04]} Kf7 {[%emt 0:00:03]} 33. Qc7+ {[%emt 0:00:41]} Kg6 {[%emt 0:00:13]} 34. Qg7+ {[%emt 0:00:11]} Kf5 {[%emt 0:00:10]} 35. Qh7+ {[%emt 0:00:03]} Ke6 {[%emt 0:00:15]} 36. Qg6+ {[%emt 0:00:06]} Ke7 {[%emt 0:00:08]} 37. Bd6+ {[%emt 0:00:03]} 1-0

[Event "Groningen Festival 2018"]
[Site "Groningen"]
[Date "2018.12.28"]
[Round "7"]
[White "Gleizerov, Evgeny"]
[Black "De Jong, Migchiel"]
[Result "0-1"]
[ECO "C01"]
[WhiteElo "2504"]
[BlackElo "2323"]
[Annotator "ChessBase"]
[PlyCount "104"]
[EventDate "2018.12.22"]
[EventType "swiss"]
[EventCountry "NED"]
[SourceTitle "playchess.com"]
[Source "ChessBase"]
[SourceQuality "1"]
[TimeControl "40/5400+30:1800+30"]

1. d4 {[%emt 0:00:00]} e6 {[%emt 0:00:00]} 2. e4 {[%emt 0:00:00]} d5 {[%emt 0:00:00]} 3. exd5 {[%emt 0:00:00]} exd5 {[%emt 0:00:02]} 4. c4 {[%emt 0:00:00]} Nf6 {[%emt 0:01:37]} 5. Nc3 {[%emt 0:00:02]} Bb4 {[%emt 0:01:10]} 6. Bd3 {[%emt 0:00:21]} O-O {[%emt 0:00:49]} 7. Nge2 {[%emt 0:00:07]} dxc4 {[%emt 0:02:04]} 8. Bxc4 {[%emt 0:00:48]} Nbd7 {[%emt 0:01:34]} 9. O-O {[%emt 0:00:45]} Nb6 {[%emt 0:00:37]} 10. Bb3 {[%emt 0:00:33]} c6 {[%emt 0:01:00]} 11. Bg5 {[%emt 0:00:35]} Be7 {[%emt 0:00:14]} 12. Re1 {[%emt 0:00:36]} Nfd5 {[%emt 0:01:58]} 13. Bxe7 {[%emt 0:01:09]} Nxe7 {[%emt 0:00:14]} 14. Nf4 {[%emt 0:06:34]} Bf5 {[%emt 0:06:28]} 15. Re5 {[%emt 0:09:58]} Nd7 {[%emt 0:01:46]} 16. Re3 {[%emt 0:01:03]} Nf6 {[%emt 0:01:30]} 17. Qe2 {[%emt 0:14:13]} Ng6 {[%emt 0:00:32]} 18. Nxg6 {[%emt 0:00:10]} Bxg6 {[%emt 0:00:30]} 19. Rd1 {[%emt 0:01:02]} Bh5 {[%emt 0:01:40]} 20. f3 {[%emt 0:02:26]} Re8 {[%emt 0:01:49]} 21. g4 {[%emt 0:04:29]} Bg6 {[%emt 0:01:17]} 22. h4 {[%emt 0:00:57]} Qd6 {[%emt 0:02:59]} 23. Re5 {[%emt 0:04:01]} h6 {[%emt 0:05:12]} 24. f4 {[%emt 0:05:03]} Kf8 {[%emt 0:02:23]} 25. f5 {[%emt 0:22:54]} Bh7 {[%emt 0:01:06]} 26. Kg2 {[%emt 0:02:40]} h5 {[%emt 0:03:51]} 27. g5 {[%emt 0:08:30]} Ng4 {[%emt 0:00:14]} 28. Re1 {[%emt 0:00:37]} Rxe5 {[%emt 0:10:29]} 29. dxe5 {[%emt 0:00:06]} Qd4 {[%emt 0:00:26]} 30. e6 {[%emt 0:02:16]} fxe6 {[%emt 0:03:14]} 31. fxe6 {[%emt 0:00:25]} Ke7 {[%emt 0:01:19]} 32. Qf3 {[%emt 0:02:04]} Bg6 {[%emt 0:01:53]} 33. Qg3 {[%emt 0:04:40]} Rd8 {[%emt 0:04:03]} 34. Re2 {[%emt 0:02:39]} Rd6 {[%emt 0:00:59]} 35. Qf3 {[%emt 0:01:28]} Ne5 {[%emt 0:01:05]} 36. Qg3 {[%emt 0:00:01]} Nd3 {[%emt 0:01:00]} 37. Re3 {[%emt 0:02:32]} Bf5 {[%emt 0:08:07]} 38. Ne2 {[%emt 0:00:34]} Qxb2 {[%emt 0:01:40]} 39. Bc4 {[%emt 0:01:33]} Nc5 {[%emt 0:03:45]} 40. Re5 {[%emt 0:00:45]} Be4+ {[%emt 0:06:01]} 41. Rxe4 {[%emt 0:13:30]} Nxe4 {[%emt 0:00:20]} 42. Qf4 {[%emt 0:02:14]} Nf6 {[%emt 0:03:20]} 43. gxf6+ {[%emt 0:00:13]} Qxf6 {[%emt 0:00:06]} 44. Qe4 {[%emt 0:02:30]} b5 {[%emt 0:00:22]} 45. Bb3 {[%emt 0:00:05]} a5 {[%emt 0:01:10]} 46. a4 {[%emt 0:05:46]} bxa4 {[%emt 0:01:11]} 47. Bc4 {[%emt 0:00:56]} Rxe6 {[%emt 0:03:45]} 48. Bxe6 {[%emt 0:00:05]} Qxe6 {[%emt 0:00:08]} 49. Qc2 {[%emt 0:00:06]} Qd5+ {[%emt 0:00:43]} 50. Kf2 {[%emt 0:00:36]} a3 {[%emt 0:00:12]} 51. Nc1 {[%emt 0:00:49]} Qd4+ {[%emt 0:00:38]} 52. Ke2 {[%emt 0:00:16]} Qb2 {[%emt 0:00:16]} 0-1